[Event "Titled Tuesday Blitz July 13 2021"]
[White "Erdogdu, Mert"]
[Black "Sadovsky, Artem"]
[WhiteFideId "6301495"]
[BlackFideId "4155840"]
[WhiteElo "2485"]
[BlackElo "2442"]
[Result "1-0"]
[Round "06"]
[TimeControl "180+1"]
[Date "2021.07.13"]
[WhiteClock "0:00:14"]
[BlackClock "0:00:09"]

1. e4 {[%clk 0:01:46]}  g6 {[%clk 0:02:58]} 2. d4 {[%clk 0:01:46]}  Bg7 {[%clk 0:02:58]} 3. Nc3 {[%clk 0:01:46]}  c6 {[%clk 0:02:58]} 4. Be3 {[%clk 0:01:47]}  d5 {[%clk 0:02:58]} 5. h3 {[%clk 0:01:48]}  dxe4 {[%clk 0:02:53]} 6. Nxe4 {[%clk 0:01:46]}  Nd7 {[%clk 0:02:53]} 7. Nf3 {[%clk 0:01:46]}  Ngf6 {[%clk 0:02:52]} 8. Nxf6+ {[%clk 0:01:46]}  Nxf6 {[%clk 0:02:53]} 9. Bc4 {[%clk 0:01:46]}  O-O {[%clk 0:02:53]} 10. O-O {[%clk 0:01:46]}  a5 {[%clk 0:02:43]} 11. a4 {[%clk 0:01:45]}  Qd6 {[%clk 0:02:37]} 12. Re1 {[%clk 0:01:43]}  Nd5 {[%clk 0:02:35]} 13. Bg5 {[%clk 0:01:40]}  Re8 {[%clk 0:02:36]} 14. Qd2 {[%clk 0:01:38]}  Be6 {[%clk 0:02:19]} 15. Bb3 {[%clk 0:01:21]}  Rad8 {[%clk 0:02:14]} 16. Qxa5 {[%clk 0:01:14]}  Nb4 {[%clk 0:01:56]} 17. Bxe6 {[%clk 0:01:03]}  fxe6 {[%clk 0:01:57]} 18. Bf4 {[%clk 0:00:46]}  Qxf4 {[%clk 0:01:43]} 19. Qxb4 {[%clk 0:00:47]}  Bxd4 {[%clk 0:01:29]} 20. c3 {[%clk 0:00:44]}  c5 {[%clk 0:01:18]} 21. Qb3 {[%clk 0:00:26]}  c4 {[%clk 0:01:02]} 22. Qc2 {[%clk 0:00:26]}  Bf6 {[%clk 0:00:53]} 23. Re4 {[%clk 0:00:27]}  Qf5 {[%clk 0:00:50]} 24. Qe2 {[%clk 0:00:27]}  Rd3 {[%clk 0:00:42]} 25. Rxc4 {[%clk 0:00:25]}  Red8 {[%clk 0:00:42]} 26. Re4 {[%clk 0:00:25]}  Kf7 {[%clk 0:00:38]} 27. a5 {[%clk 0:00:25]}  Qb5 {[%clk 0:00:38]} 28. g3 {[%clk 0:00:18]}  Qb3 {[%clk 0:00:29]} 29. Kg2 {[%clk 0:00:17]}  h5 {[%clk 0:00:27]} 30. Rb4 {[%clk 0:00:16]}  Qd5 {[%clk 0:00:26]} 31. Re1 {[%clk 0:00:16]}  g5 {[%clk 0:00:24]} 32. Re4 {[%clk 0:00:14]}  Rd6 {[%clk 0:00:21]} 33. c4 {[%clk 0:00:14]}  Qc6 {[%clk 0:00:20]} 34. b4 {[%clk 0:00:13]}  g4 {[%clk 0:00:18]} 35. hxg4 {[%clk 0:00:13]}  hxg4 {[%clk 0:00:19]} 36. Rxg4 {[%clk 0:00:14]}  Rd2 {[%clk 0:00:17]} 37. Qe4 {[%clk 0:00:13]}  Rb2 {[%clk 0:00:12]} 38. Qg6+ {[%clk 0:00:13]}  Kf8 {[%clk 0:00:09]} 39. Qg8# {[%clk 0:00:14]} 1-0


[Site "https://www.chess.com"]

[Event "Titled Tuesday Blitz July 13 2021"]
[White "Gedgafov, Chamal"]
[Black "Weinstein, Norman"]
[WhiteFideId "34130621"]
[BlackFideId "2000466"]
[WhiteElo "2005"]
[BlackElo "2518"]
[Result "0-1"]
[Round "06"]
[TimeControl "180+1"]
[Date "2021.07.13"]
[WhiteClock "0:00:02"]
[BlackClock "0:00:10"]

1. d4 {[%clk 0:03:00]}  Nf6 {[%clk 0:02:58]} 2. c4 {[%clk 0:03:00]}  g6 {[%clk 0:02:58]} 3. Nc3 {[%clk 0:02:59]}  Bg7 {[%clk 0:02:59]} 4. e4 {[%clk 0:02:59]}  O-O {[%clk 0:02:59]} 5. Nf3 {[%clk 0:03:00]}  d6 {[%clk 0:02:58]} 6. Be2 {[%clk 0:03:00]}  c5 {[%clk 0:02:59]} 7. d5 {[%clk 0:02:59]}  e6 {[%clk 0:02:58]} 8. h3 {[%clk 0:02:57]}  Re8 {[%clk 0:02:59]} 9. O-O {[%clk 0:02:56]}  Na6 {[%clk 0:02:59]} 10. Bd3 {[%clk 0:02:50]}  Nc7 {[%clk 0:02:58]} 11. Bf4 {[%clk 0:02:42]}  exd5 {[%clk 0:02:57]} 12. exd5 {[%clk 0:02:42]}  Nh5 {[%clk 0:02:46]} 13. Bh2 {[%clk 0:02:40]}  f5 {[%clk 0:02:46]} 14. Qd2 {[%clk 0:02:37]}  Qf6 {[%clk 0:02:34]} 15. Rfe1 {[%clk 0:02:33]}  Bd7 {[%clk 0:02:34]} 16. Rxe8+ {[%clk 0:02:16]}  Rxe8 {[%clk 0:02:32]} 17. Re1 {[%clk 0:02:16]}  a6 {[%clk 0:02:23]} 18. a4 {[%clk 0:02:14]}  Rb8 {[%clk 0:02:20]} 19. Qe2 {[%clk 0:02:03]}  Bf8 {[%clk 0:02:16]} 20. Qe3 {[%clk 0:01:48]}  Ng7 {[%clk 0:02:11]} 21. Qg5 {[%clk 0:01:39]}  Qxg5 {[%clk 0:02:03]} 22. Nxg5 {[%clk 0:01:40]}  b5 {[%clk 0:01:56]} 23. axb5 {[%clk 0:01:38]}  axb5 {[%clk 0:01:56]} 24. b3 {[%clk 0:01:34]}  b4 {[%clk 0:01:53]} 25. Ne2 {[%clk 0:01:27]}  h6 {[%clk 0:01:45]} 26. Nf3 {[%clk 0:01:22]}  Ra8 {[%clk 0:01:44]} 27. Nf4 {[%clk 0:01:16]}  Kf7 {[%clk 0:01:44]} 28. h4 {[%clk 0:01:13]}  Ra3 {[%clk 0:01:41]} 29. Bc2 {[%clk 0:01:12]}  Ra2 {[%clk 0:01:40]} 30. Bd1 {[%clk 0:01:11]}  Nce8 {[%clk 0:01:31]} 31. h5 {[%clk 0:01:05]}  g5 {[%clk 0:01:25]} 32. Ng6 {[%clk 0:01:05]}  f4 {[%clk 0:01:22]} 33. Nxf8 {[%clk 0:01:04]}  Kxf8 {[%clk 0:01:23]} 34. g3 {[%clk 0:01:01]}  g4 {[%clk 0:01:17]} 35. Nh4 {[%clk 0:00:44]}  f3 {[%clk 0:01:16]} 36. Nxf3 {[%clk 0:00:44]}  gxf3 {[%clk 0:01:15]} 37. Bxf3 {[%clk 0:00:44]}  Kf7 {[%clk 0:01:05]} 38. g4 {[%clk 0:00:44]}  Rb2 {[%clk 0:01:02]} 39. Re3 {[%clk 0:00:43]}  Rd2 {[%clk 0:00:56]} 40. Be2 {[%clk 0:00:41]}  Rd4 {[%clk 0:00:56]} 41. f3 {[%clk 0:00:40]}  Rd2 {[%clk 0:00:52]} 42. Kf2 {[%clk 0:00:39]}  Rb2 {[%clk 0:00:47]} 43. Bf4 {[%clk 0:00:36]}  Ra2 {[%clk 0:00:39]} 44. Bxh6 {[%clk 0:00:35]}  Nf6 {[%clk 0:00:39]} 45. Bf4 {[%clk 0:00:34]}  Nge8 {[%clk 0:00:40]} 46. h6 {[%clk 0:00:29]}  Nh7 {[%clk 0:00:32]} 47. Kg3 {[%clk 0:00:27]}  Nf8 {[%clk 0:00:28]} 48. Bd3 {[%clk 0:00:19]}  Rb2 {[%clk 0:00:23]} 49. Be4 {[%clk 0:00:17]}  Nf6 {[%clk 0:00:21]} 50. Bg5 {[%clk 0:00:16]}  Nxe4+ {[%clk 0:00:20]} 51. fxe4 {[%clk 0:00:15]}  Nh7 {[%clk 0:00:18]} 52. Bf4 {[%clk 0:00:15]}  Kg6 {[%clk 0:00:13]} 53. Bxd6 {[%clk 0:00:14]}  Kxh6 {[%clk 0:00:13]} 54. Bxc5 {[%clk 0:00:14]}  Kg5 {[%clk 0:00:13]} 55. Bxb4 {[%clk 0:00:13]}  Nf6 {[%clk 0:00:13]} 56. e5 {[%clk 0:00:13]}  Nxg4 {[%clk 0:00:13]} 57. Re1 {[%clk 0:00:10]}  Bf5 {[%clk 0:00:13]} 58. Bc3 {[%clk 0:00:08]}  Rxb3 {[%clk 0:00:13]} 59. Rc1 {[%clk 0:00:08]}  Nxe5 {[%clk 0:00:11]} 60. Kf2 {[%clk 0:00:07]}  Nxc4 {[%clk 0:00:11]} 61. Bd4 {[%clk 0:00:06]}  Nd6 {[%clk 0:00:11]} 62. Rc6 {[%clk 0:00:04]}  Ne4+ {[%clk 0:00:11]} 63. Ke2 {[%clk 0:00:03]}  Rb5 {[%clk 0:00:11]} 64. d6 {[%clk 0:00:02]}  Rd5 {[%clk 0:00:11]} 65. Be3+ {[%clk 0:00:02]}  Kg4 {[%clk 0:00:10]} 0-1


[Site "https://www.chess.com"]

[Event "Titled Tuesday Blitz July 13 2021"]
[White "German, Sergio"]
[Black "Solon, Nathan"]
[WhiteFideId "105104"]
[BlackFideId "2017229"]
[WhiteElo "2457"]
[BlackElo "2635"]
[Result "1/2-1/2"]
[Round "06"]
[TimeControl "180+1"]
[Date "2021.07.13"]
[WhiteClock "0:00:03"]
[BlackClock "0:00:10"]

1. e4 {[%clk 0:03:00]}  c5 {[%clk 0:02:59]} 2. Nf3 {[%clk 0:03:00]}  d6 {[%clk 0:02:59]} 3. d4 {[%clk 0:03:00]}  cxd4 {[%clk 0:03:00]} 4. Nxd4 {[%clk 0:03:00]}  Nf6 {[%clk 0:03:01]} 5. Nc3 {[%clk 0:03:00]}  a6 {[%clk 0:03:01]} 6. g3 {[%clk 0:03:00]}  e5 {[%clk 0:03:01]} 7. Nb3 {[%clk 0:03:00]}  Be7 {[%clk 0:02:59]} 8. Bg2 {[%clk 0:03:00]}  O-O {[%clk 0:02:57]} 9. O-O {[%clk 0:03:00]}  Be6 {[%clk 0:02:53]} 10. Nd5 {[%clk 0:02:46]}  Bxd5 {[%clk 0:02:37]} 11. exd5 {[%clk 0:02:46]}  Nbd7 {[%clk 0:02:37]} 12. a4 {[%clk 0:02:32]}  Rc8 {[%clk 0:02:34]} 13. Be3 {[%clk 0:02:29]}  Qc7 {[%clk 0:02:32]} 14. c3 {[%clk 0:02:24]}  Nb6 {[%clk 0:02:27]} 15. Na5 {[%clk 0:02:09]}  Nbxd5 {[%clk 0:02:19]} 16. Bxd5 {[%clk 0:02:03]}  Qxa5 {[%clk 0:02:18]} 17. Bxb7 {[%clk 0:01:57]}  Rb8 {[%clk 0:02:18]} 18. b4 {[%clk 0:01:56]}  Qc7 {[%clk 0:02:16]} 19. Bxa6 {[%clk 0:01:54]}  Qxc3 {[%clk 0:02:15]} 20. b5 {[%clk 0:01:49]}  d5 {[%clk 0:02:14]} 21. Qc1 {[%clk 0:01:33]}  Qa5 {[%clk 0:02:07]} 22. Qc2 {[%clk 0:01:13]}  d4 {[%clk 0:02:02]} 23. Bd2 {[%clk 0:01:13]}  Bb4 {[%clk 0:02:01]} 24. Bxb4 {[%clk 0:01:05]}  Qxb4 {[%clk 0:02:02]} 25. a5 {[%clk 0:01:02]}  e4 {[%clk 0:01:58]} 26. Rfb1 {[%clk 0:00:55]}  Qd6 {[%clk 0:01:50]} 27. b6 {[%clk 0:00:54]}  e3 {[%clk 0:01:42]} 28. Qc7 {[%clk 0:00:51]}  Qd5 {[%clk 0:01:35]} 29. Rb2 {[%clk 0:00:38]}  Ng4 {[%clk 0:01:23]} 30. fxe3 {[%clk 0:00:16]}  dxe3 {[%clk 0:01:21]} 31. Rc1 {[%clk 0:00:15]}  Qxa5 {[%clk 0:00:55]} 32. Be2 {[%clk 0:00:10]}  Nf2 {[%clk 0:00:50]} 33. b7 {[%clk 0:00:07]}  Qd5 {[%clk 0:00:20]} 34. Qc6 {[%clk 0:00:07]}  Nh3+ {[%clk 0:00:17]} 35. Kf1 {[%clk 0:00:07]}  Qe5 {[%clk 0:00:14]} 36. Rbb1 {[%clk 0:00:06]}  Rfd8 {[%clk 0:00:13]} 37. Qc8 {[%clk 0:00:03]}  Qf6+ {[%clk 0:00:12]} 38. Kg2 {[%clk 0:00:02]}  Qf2+ {[%clk 0:00:10]} 39. Kxh3 {[%clk 0:00:02]}  Qxe2 {[%clk 0:00:10]} 40. Qxb8 {[%clk 0:00:02]}  Qh5+ {[%clk 0:00:09]} 41. Kg2 {[%clk 0:00:02]}  Qe2+ {[%clk 0:00:09]} 42. Kh3 {[%clk 0:00:02]}  Qh5+ {[%clk 0:00:09]} 43. Kg2 {[%clk 0:00:03]}  Qe2+ {[%clk 0:00:10]} 44. Kh3 {[%clk 0:00:03]} 1/2-1/2


[Site "https://www.chess.com"]

[Event "Titled Tuesday Blitz July 13 2021"]
[White "Gusarov, Grigory"]
[Black "Shahinyan, David"]
[WhiteFideId "24102172"]
[BlackFideId "13304380"]
[WhiteElo "2269"]
[BlackElo "2372"]
[Result "1-0"]
[Round "06"]
[TimeControl "180+1"]
[Date "2021.07.13"]
[WhiteClock "0:01:03"]
[BlackClock "0:00:16"]

1. d4 {[%clk 0:03:00]}  Nf6 {[%clk 0:02:58]} 2. Nf3 {[%clk 0:03:00]}  c5 {[%clk 0:02:58]} 3. d5 {[%clk 0:03:00]}  a6 {[%clk 0:02:56]} 4. Nc3 {[%clk 0:02:56]}  b5 {[%clk 0:02:54]} 5. Bg5 {[%clk 0:02:54]}  d6 {[%clk 0:02:53]} 6. Bxf6 {[%clk 0:02:54]}  exf6 {[%clk 0:02:53]} 7. e4 {[%clk 0:02:54]}  g6 {[%clk 0:02:52]} 8. Bd3 {[%clk 0:02:53]}  Bg7 {[%clk 0:02:52]} 9. O-O {[%clk 0:02:52]}  O-O {[%clk 0:02:52]} 10. h3 {[%clk 0:02:52]}  Nd7 {[%clk 0:02:52]} 11. Re1 {[%clk 0:02:52]}  Ne5 {[%clk 0:02:51]} 12. a4 {[%clk 0:02:50]}  b4 {[%clk 0:02:49]} 13. Nb1 {[%clk 0:02:48]}  a5 {[%clk 0:02:48]} 14. Nbd2 {[%clk 0:02:47]}  Qe7 {[%clk 0:02:43]} 15. Nc4 {[%clk 0:02:46]}  Ba6 {[%clk 0:02:40]} 16. Ncxe5 {[%clk 0:02:39]}  fxe5 {[%clk 0:02:35]} 17. Bxa6 {[%clk 0:02:39]}  Rxa6 {[%clk 0:02:36]} 18. Nd2 {[%clk 0:02:39]}  f5 {[%clk 0:02:34]} 19. Qe2 {[%clk 0:02:39]}  Raa8 {[%clk 0:02:30]} 20. Nc4 {[%clk 0:02:38]}  fxe4 {[%clk 0:02:15]} 21. Qxe4 {[%clk 0:02:37]}  Rf4 {[%clk 0:02:16]} 22. Qxf4 {[%clk 0:02:37]}  Rf8 {[%clk 0:02:10]} 23. Qe4 {[%clk 0:02:37]}  Qf6 {[%clk 0:02:08]} 24. f3 {[%clk 0:02:34]}  Qd8 {[%clk 0:02:02]} 25. Rad1 {[%clk 0:02:29]}  Bh6 {[%clk 0:01:57]} 26. b3 {[%clk 0:02:25]}  Bf4 {[%clk 0:01:55]} 27. Re2 {[%clk 0:02:07]}  Qh4 {[%clk 0:01:49]} 28. Ne3 {[%clk 0:01:55]}  Kg7 {[%clk 0:01:38]} 29. Nf1 {[%clk 0:01:54]}  Qg5 {[%clk 0:01:37]} 30. Qd3 {[%clk 0:01:53]}  h5 {[%clk 0:01:29]} 31. Re4 {[%clk 0:01:52]}  Qh4 {[%clk 0:01:28]} 32. g3 {[%clk 0:01:45]}  Qg5 {[%clk 0:01:24]} 33. h4 {[%clk 0:01:44]}  Qf6 {[%clk 0:01:19]} 34. gxf4 {[%clk 0:01:43]}  Qxh4 {[%clk 0:01:18]} 35. Qe2 {[%clk 0:01:39]}  exf4 {[%clk 0:01:15]} 36. Qg2 {[%clk 0:01:37]}  Rf5 {[%clk 0:01:13]} 37. Qh2 {[%clk 0:01:24]}  Qf6 {[%clk 0:01:00]} 38. Rde1 {[%clk 0:01:20]}  Rxd5 {[%clk 0:00:55]} 39. Qxf4 {[%clk 0:01:18]}  Rg5+ {[%clk 0:00:48]} 40. Kh1 {[%clk 0:01:16]}  Qd8 {[%clk 0:00:32]} 41. Re7+ {[%clk 0:01:15]}  Kh6 {[%clk 0:00:31]} 42. Nh2 {[%clk 0:01:09]}  c4 {[%clk 0:00:27]} 43. R1e6 {[%clk 0:01:08]}  Qb6 {[%clk 0:00:18]} 44. Rxg6+ {[%clk 0:01:04]}  Kxg6 {[%clk 0:00:17]} 45. Qf7+ {[%clk 0:01:04]}  Kh6 {[%clk 0:00:16]} 46. Qh7# {[%clk 0:01:03]} 1-0


[Site "https://www.chess.com"]

[Event "Titled Tuesday Blitz July 13 2021"]
[White "Hryshchenko, Kamila"]
[Black "Svane, Frederik"]
[WhiteFideId "14147491"]
[BlackFideId "12923044"]
[WhiteElo "1966"]
[BlackElo "2459"]
[Result "0-1"]
[Round "06"]
[TimeControl "180+1"]
[Date "2021.07.13"]
[WhiteClock "0:00:22"]
[BlackClock "0:00:08"]

1. e4 {[%clk 0:02:55]}  c5 {[%clk 0:03:00]} 2. Nf3 {[%clk 0:02:56]}  a6 {[%clk 0:02:58]} 3. d4 {[%clk 0:02:55]}  cxd4 {[%clk 0:02:59]} 4. Qxd4 {[%clk 0:02:56]}  Nc6 {[%clk 0:02:58]} 5. Qd3 {[%clk 0:02:57]}  d6 {[%clk 0:02:58]} 6. Nc3 {[%clk 0:02:57]}  Nf6 {[%clk 0:02:58]} 7. Be3 {[%clk 0:02:57]}  g6 {[%clk 0:02:52]} 8. Nd5 {[%clk 0:02:57]}  Nxd5 {[%clk 0:01:25]} 9. exd5 {[%clk 0:02:57]}  Ne5 {[%clk 0:01:25]} 10. Nxe5 {[%clk 0:02:56]}  dxe5 {[%clk 0:01:26]} 11. O-O-O {[%clk 0:02:53]}  Bg7 {[%clk 0:01:25]} 12. Qb3 {[%clk 0:02:42]}  O-O {[%clk 0:01:21]} 13. h4 {[%clk 0:02:41]}  h5 {[%clk 0:01:13]} 14. Bb6 {[%clk 0:02:41]}  Qd6 {[%clk 0:01:12]} 15. Bd3 {[%clk 0:02:35]}  Bd7 {[%clk 0:01:04]} 16. Kb1 {[%clk 0:02:19]}  a5 {[%clk 0:01:02]} 17. a3 {[%clk 0:02:12]}  Rfc8 {[%clk 0:00:53]} 18. c4 {[%clk 0:02:06]}  e4 {[%clk 0:00:29]} 19. Bxe4 {[%clk 0:01:55]}  a4 {[%clk 0:00:28]} 20. c5 {[%clk 0:01:26]}  axb3 {[%clk 0:00:19]} 21. cxd6 {[%clk 0:01:26]}  exd6 {[%clk 0:00:20]} 22. Bd3 {[%clk 0:00:55]}  Ba4 {[%clk 0:00:18]} 23. Rhe1 {[%clk 0:00:52]}  Rc2 {[%clk 0:00:16]} 24. Re2 {[%clk 0:00:44]}  Rac8 {[%clk 0:00:16]} 25. Rde1 {[%clk 0:00:38]}  Rxe2 {[%clk 0:00:14]} 26. Rxe2 {[%clk 0:00:37]}  Bf6 {[%clk 0:00:14]} 27. g3 {[%clk 0:00:36]}  Kf8 {[%clk 0:00:11]} 28. Re4 {[%clk 0:00:34]}  Re8 {[%clk 0:00:05]} 29. Bc7 {[%clk 0:00:20]}  Rxe4 {[%clk 0:00:04]} 30. Bxe4 {[%clk 0:00:21]}  Ke7 {[%clk 0:00:05]} 31. f4 {[%clk 0:00:20]}  Kd7 {[%clk 0:00:05]} 32. Ba5 {[%clk 0:00:20]}  Bb5 {[%clk 0:00:06]} 33. Bc3 {[%clk 0:00:19]}  Ke7 {[%clk 0:00:04]} 34. Kc1 {[%clk 0:00:19]}  Bxc3 {[%clk 0:00:04]} 35. bxc3 {[%clk 0:00:20]}  Bc4 {[%clk 0:00:04]} 36. Kb2 {[%clk 0:00:20]}  Kd7 {[%clk 0:00:05]} 37. Bf3 {[%clk 0:00:20]}  Kc7 {[%clk 0:00:04]} 38. Be4 {[%clk 0:00:21]}  f5 {[%clk 0:00:03]} 39. Bf3 {[%clk 0:00:21]}  Kb6 {[%clk 0:00:04]} 40. Bd1 {[%clk 0:00:21]}  Kc5 {[%clk 0:00:03]} 41. Bxb3 {[%clk 0:00:21]}  Kxd5 {[%clk 0:00:04]} 42. Bc2 {[%clk 0:00:21]}  Kc5 {[%clk 0:00:04]} 43. Kc1 {[%clk 0:00:21]}  Bd5 {[%clk 0:00:04]} 44. Kd2 {[%clk 0:00:21]}  Be4 {[%clk 0:00:05]} 45. Bb3 {[%clk 0:00:21]}  Bd5 {[%clk 0:00:04]} 46. Ba4 {[%clk 0:00:21]}  b5 {[%clk 0:00:03]} 47. Bc2 {[%clk 0:00:21]}  Bc4 {[%clk 0:00:03]} 48. Ke3 {[%clk 0:00:21]}  Kd5 {[%clk 0:00:03]} 49. Bd1 {[%clk 0:00:21]}  Bf1 {[%clk 0:00:03]} 50. Bf3+ {[%clk 0:00:21]}  Kc4 {[%clk 0:00:03]} 51. Kd2 {[%clk 0:00:22]}  Kb3 {[%clk 0:00:03]} 52. Bd5+ {[%clk 0:00:21]}  Bc4 {[%clk 0:00:03]} 53. Bc6 {[%clk 0:00:17]}  Kxa3 {[%clk 0:00:03]} 54. Be8 {[%clk 0:00:18]}  d5 {[%clk 0:00:04]} 55. Bxg6 {[%clk 0:00:18]}  d4 {[%clk 0:00:04]} 56. cxd4 {[%clk 0:00:18]}  b4 {[%clk 0:00:04]} 57. Bxh5 {[%clk 0:00:17]}  b3 {[%clk 0:00:04]} 58. Bg6 {[%clk 0:00:18]}  Be6 {[%clk 0:00:04]} 59. d5 {[%clk 0:00:18]}  b2 {[%clk 0:00:03]} 60. dxe6 {[%clk 0:00:18]}  b1=Q {[%clk 0:00:04]} 61. e7 {[%clk 0:00:18]}  Qb4+ {[%clk 0:00:04]} 62. Kd3 {[%clk 0:00:18]}  Qd6+ {[%clk 0:00:04]} 63. Kc4 {[%clk 0:00:17]}  Qxg6 {[%clk 0:00:03]} 64. Kd5 {[%clk 0:00:16]}  Kb4 {[%clk 0:00:02]} 65. h5 {[%clk 0:00:16]}  Qxh5 {[%clk 0:00:03]} 66. Ke6 {[%clk 0:00:17]}  Qe8 {[%clk 0:00:03]} 67. Kf6 {[%clk 0:00:17]}  Kc5 {[%clk 0:00:03]} 68. Ke6 {[%clk 0:00:17]}  Kc6 {[%clk 0:00:04]} 69. g4 {[%clk 0:00:18]}  fxg4 {[%clk 0:00:04]} 70. f5 {[%clk 0:00:19]}  Qd7+ {[%clk 0:00:05]} 71. Kf6 {[%clk 0:00:19]}  Kd6 {[%clk 0:00:05]} 72. Kf7 {[%clk 0:00:19]}  Qxe7+ {[%clk 0:00:05]} 73. Kg6 {[%clk 0:00:20]}  g3 {[%clk 0:00:06]} 74. f6 {[%clk 0:00:20]}  Qxf6+ {[%clk 0:00:06]} 75. Kh7 {[%clk 0:00:21]}  g2 {[%clk 0:00:07]} 76. Kg8 {[%clk 0:00:22]}  g1=Q+ {[%clk 0:00:07]} 77. Kh7 {[%clk 0:00:22]}  Qgg7# {[%clk 0:00:08]} 0-1


[Site "https://www.chess.com"]

[Event "Titled Tuesday Blitz July 13 2021"]
[White "Ibrahimli, Murad"]
[Black "Pert, Richard G"]
[WhiteFideId "13410229"]
[BlackFideId "404748"]
[WhiteElo "2109"]
[BlackElo "2441"]
[Result "1-0"]
[Round "06"]
[TimeControl "180+1"]
[Date "2021.07.13"]
[WhiteClock "0:00:59"]
[BlackClock "0:00:04"]

1. d4 {[%clk 0:03:00]}  d5 {[%clk 0:02:59]} 2. c4 {[%clk 0:02:59]}  e6 {[%clk 0:02:59]} 3. Nc3 {[%clk 0:02:59]}  c5 {[%clk 0:02:57]} 4. e3 {[%clk 0:02:58]}  Nf6 {[%clk 0:02:56]} 5. Nf3 {[%clk 0:02:58]}  a6 {[%clk 0:02:49]} 6. b3 {[%clk 0:02:49]}  cxd4 {[%clk 0:02:46]} 7. exd4 {[%clk 0:02:49]}  Bb4 {[%clk 0:02:42]} 8. Bd2 {[%clk 0:02:49]}  O-O {[%clk 0:02:38]} 9. a3 {[%clk 0:02:43]}  Be7 {[%clk 0:02:30]} 10. c5 {[%clk 0:02:40]}  Ne4 {[%clk 0:02:20]} 11. Bd3 {[%clk 0:02:38]}  f5 {[%clk 0:02:19]} 12. b4 {[%clk 0:02:38]}  Nc6 {[%clk 0:02:18]} 13. Ne2 {[%clk 0:02:25]}  Bd7 {[%clk 0:02:10]} 14. a4 {[%clk 0:02:17]}  Bf6 {[%clk 0:02:05]} 15. O-O {[%clk 0:02:10]}  Be8 {[%clk 0:01:57]} 16. b5 {[%clk 0:02:03]}  axb5 {[%clk 0:01:38]} 17. axb5 {[%clk 0:02:02]}  Rxa1 {[%clk 0:01:39]} 18. Qxa1 {[%clk 0:02:03]}  Nxd2 {[%clk 0:01:28]} 19. Nxd2 {[%clk 0:02:00]}  Ne7 {[%clk 0:01:20]} 20. Qa7 {[%clk 0:01:55]}  Qc8 {[%clk 0:01:06]} 21. c6 {[%clk 0:01:51]}  bxc6 {[%clk 0:01:03]} 22. b6 {[%clk 0:01:51]}  Bf7 {[%clk 0:00:53]} 23. Nb3 {[%clk 0:01:50]}  c5 {[%clk 0:00:40]} 24. Nxc5 {[%clk 0:01:36]}  Nc6 {[%clk 0:00:39]} 25. Qa4 {[%clk 0:01:37]}  e5 {[%clk 0:00:35]} 26. b7 {[%clk 0:01:23]}  Qc7 {[%clk 0:00:34]} 27. Bxf5 {[%clk 0:01:24]}  Nxd4 {[%clk 0:00:31]} 28. Nxd4 {[%clk 0:01:22]}  exd4 {[%clk 0:00:32]} 29. Ne6 {[%clk 0:01:22]}  Bxe6 {[%clk 0:00:20]} 30. Bxe6+ {[%clk 0:01:22]}  Kh8 {[%clk 0:00:20]} 31. Bxd5 {[%clk 0:01:22]}  Rd8 {[%clk 0:00:19]} 32. Be4 {[%clk 0:01:18]}  Qe5 {[%clk 0:00:17]} 33. Bd3 {[%clk 0:01:13]}  h6 {[%clk 0:00:15]} 34. g3 {[%clk 0:01:11]}  Qd5 {[%clk 0:00:14]} 35. Rb1 {[%clk 0:01:10]}  Rb8 {[%clk 0:00:13]} 36. Qa7 {[%clk 0:01:01]}  Be5 {[%clk 0:00:12]} 37. Qa6 {[%clk 0:01:01]}  Qf3 {[%clk 0:00:06]} 38. Qg6 {[%clk 0:01:00]}  Kg8 {[%clk 0:00:06]} 39. Qe6+ {[%clk 0:01:00]}  Kh8 {[%clk 0:00:05]} 40. Qxe5 {[%clk 0:01:00]}  Qxd3 {[%clk 0:00:03]} 41. Qxb8+ {[%clk 0:01:00]}  Kh7 {[%clk 0:00:04]} 42. Rf1 {[%clk 0:00:59]} 1-0


[Site "https://www.chess.com"]

[Event "Titled Tuesday Blitz July 13 2021"]
[White "Kim, Sergey"]
[Black "Jarovinsky, Alexey"]
[WhiteFideId "13700570"]
[BlackFideId "14115131"]
[WhiteElo "2491"]
[BlackElo "2446"]
[Result "0-1"]
[Round "06"]
[TimeControl "180+1"]
[Date "2021.07.13"]
[WhiteClock "0:00:25"]
[BlackClock "0:00:11"]

1. d4 {[%clk 0:03:00]}  Nc6 {[%clk 0:02:59]} 2. c4 {[%clk 0:03:00]}  e5 {[%clk 0:02:59]} 3. d5 {[%clk 0:03:00]}  Bb4+ {[%clk 0:02:57]} 4. Nd2 {[%clk 0:02:58]}  Nce7 {[%clk 0:02:53]} 5. e4 {[%clk 0:02:55]}  Nf6 {[%clk 0:02:48]} 6. Bd3 {[%clk 0:02:50]}  O-O {[%clk 0:02:45]} 7. Ne2 {[%clk 0:02:45]}  d6 {[%clk 0:02:42]} 8. O-O {[%clk 0:02:45]}  Bc5 {[%clk 0:02:40]} 9. Nb3 {[%clk 0:02:38]}  Bb6 {[%clk 0:02:39]} 10. Be3 {[%clk 0:02:36]}  Ng4 {[%clk 0:02:34]} 11. Bxb6 {[%clk 0:02:33]}  axb6 {[%clk 0:02:35]} 12. Ng3 {[%clk 0:02:29]}  Ng6 {[%clk 0:02:33]} 13. h3 {[%clk 0:02:29]}  Nh6 {[%clk 0:02:29]} 14. Nf5 {[%clk 0:02:09]}  Nxf5 {[%clk 0:02:23]} 15. exf5 {[%clk 0:02:09]}  Nf4 {[%clk 0:02:24]} 16. Be4 {[%clk 0:02:02]}  g6 {[%clk 0:01:59]} 17. Qg4 {[%clk 0:01:13]}  Qf6 {[%clk 0:01:34]} 18. g3 {[%clk 0:01:06]}  Nh5 {[%clk 0:01:31]} 19. Kh2 {[%clk 0:00:58]}  Bxf5 {[%clk 0:01:24]} 20. Bxf5 {[%clk 0:00:57]}  Qxf5 {[%clk 0:01:25]} 21. Qe2 {[%clk 0:00:56]}  Qg5 {[%clk 0:00:58]} 22. Nd2 {[%clk 0:00:53]}  f5 {[%clk 0:00:57]} 23. Nf3 {[%clk 0:00:52]}  Qf6 {[%clk 0:00:50]} 24. b4 {[%clk 0:00:48]}  e4 {[%clk 0:00:49]} 25. Nh4 {[%clk 0:00:46]}  Ra3 {[%clk 0:00:36]} 26. Ng2 {[%clk 0:00:44]}  Rfa8 {[%clk 0:00:30]} 27. c5 {[%clk 0:00:39]}  Qe5 {[%clk 0:00:20]} 28. Ne3 {[%clk 0:00:33]}  f4 {[%clk 0:00:15]} 29. Nc4 {[%clk 0:00:33]}  fxg3+ {[%clk 0:00:15]} 30. Kg1 {[%clk 0:00:27]}  gxf2+ {[%clk 0:00:14]} 31. Rxf2 {[%clk 0:00:27]}  Qxa1+ {[%clk 0:00:12]} 32. Kh2 {[%clk 0:00:26]}  Rxa2 {[%clk 0:00:11]} 33. Qxe4 {[%clk 0:00:25]}  Rxf2+ {[%clk 0:00:11]} 0-1


[Site "https://www.chess.com"]